Workbook

Sheet Breakdown
A2: BEAUFORT | B2: Athletic Field | C2: Field Type | D2: Acreage | F2: HILTON HEAD ISLAND | G2: Athletic Field | H2: Field Type | I2: Acreage
A3: Beaufort High School | B3: Football Stadium | C3: Artificial - Rubber | D3: 2.30 | F3: Hilton Head Island High School | G3: Football Stadium | H3: Artificial - Silicone | I3: 2.34
B4: Baseball Field | C4: Grass | D4: 2.52 | G4: Baseball Field | H4: Grass | I4: 2.67
B5: Softball Field | C5: Grass | D5: 0.90 | G5: Softball Field | H5: Grass | I5: 0.98
B6: Practice Field | C6: Grass | D6: 2.70 | G6: Lacrosse Field | H6: Grass | I6: 1.80
B7: Other | C7: Grass | D7: 9.88 | G7: Soccer Field | H7: Grass | I7: 1.40
C8: Total Acreage | D8: =SUM(D3:D7) -> 18.30 | G8: Other | H8: Grass | I8: 5.91
H9: Total Acreage | I9: =SUM(I3:I8) -> 15.10
A10: Beaufort Middle School | B10: Football Field | C10: Grass | D10: 2.30
B11: Baseball Field | C11: Grass | D11: 2.00 | F11: Hilton Head Island Middle School | G11: Practice Field | H11: Grass | I11: 1.50
B12: Softball Field | C12: Grass | D12: 0.80 | G12: Softball Field | H12: Grass | I12: 1.00
B13: Other | C13: Grass | D13: 11.80 | G13: Other | H13: Grass | I13: 1.01
C14: Total Acreage | D14: =SUM(D10:D13) -> 16.90 | H14: Total Acreage | I14: =SUM(I11:I13) -> 3.51
A16: Mossy Oaks Elementary School | B16: Playfield | C16: Artificial - Sand | D16: 0.20 | F16: Hilton Head Island Elementary School | G16: Playfield | H16: Artificial - Sand | I16: 0.20
C17: Total Acreage | D17: =SUM(D16) -> 0.20 | H17: Total Acreage | I17: =SUM(I16) -> 0.20
A19: Lady's Island Middle School | B19: Football Field | C19: Grass | D19: 2.35 | F19: Total Acreage - Hilton Head | I19: =SUM(I9, I14, I17) -> 18.81
B20: Baseball/Softball | C20: Grass | D20: 0.80
B21: Other | C21: Grass | D21: 3.95 | F21: BLUFFTON GROUP | G21: Athletic Field | H21: Field Type | I21: Acreage
C22: Total Acreage | D22: =SUM(D19:D21) -> 7.10 | F22: Bluffton High School | G22: Football Stadium | H22: Artificial - Silicone | I22: 2.30
G23: Baseball Field | H23: Grass | I23: 3.15
A24: Lady's Island Elementary School | B24: Playfield | C24: Artificial - Sand | D24: 0.10 | G24: Softball Field | H24: Grass | I24: 1.20
C25: Total Acreage | D25: =SUM(D24) -> 0.10 | G25: Practice Field | H25: Grass | I25: 2.31
G26: Other | H26: Grass | I26: 5.74
A27: St. Helena Elementary School | B27: Playfield | C27: Artificial - Sand | D27: 0.10 | H27: Total Acreage | I27: =SUM(I22:I26) -> 14.70
C28: Total Acreage | D28: =SUM(D27) -> 0.10
F29: H.E. McCracken Middle School | G29: Football Field | H29: Grass | I29: 1.50
A30: Beaufort Elementary School | B30: Playfield | C30: Artificial - Sand | D30: 0.10 | G30: Softball Infield | H30: Grass | I30: 0.80
C31: Total Acreage | D31: =SUM(D30) -> 0.10 | G31: Other | H31: Grass | I31: 0.60
H32: Total Acreage | I32: =SUM(I29:I31) -> 2.90
A33: Coosa Elementary School | B33: Playfield | C33: Artificial - Sand | D33: 0.10
C34: Total Acreage | D34: =SUM(D33) -> 0.10 | F34: Bluffton Elementary School | G34: Playfield | H34: Artificial - Sand | I34: 0.20
H35: Total Acreage | I35: =SUM(I34) -> 0.20
A36: Port Royal Elementary School | B36: Playfield | C36: Artificial - Sand | D36: 0.10
C37: Total Acreage | D37: =SUM(D36) -> 0.10 | F37: Pritchardville Elementary School | G37: Playfield | H37: Artificial - Sand | I37: 0.20
H38: Total Acreage | I38: =SUM(I37) -> 0.20
A39: Total Acreage - Beaufort | D39: =SUM(D8, D14, D17, D22, D25, D28, D31, D34, D37) -> 43.00
F40: Okatie Elementary School | G40: Playfield | H40: Artificial - Sand | I40: 0.10
A41: BATTERY CREEK | B41: Athletic Field | C41: Field Type | D41: Acreage | H41: Total Acreage | I41: =SUM(I40) -> 0.10
A42: Battery Creek High School | B42: Football Stadium | C42: Artificial - Silicone | D42: 2.00
B43: Baseball Field | C43: Grass | D43: 2.50 | F43: Red Cedar Elementary School | G43: Playfield | H43: Artificial - Sand | I43: 0.30
B44: Softball Field | C44: Grass | D44: 1.10 | H44: Total Acreage | I44: =SUM(I43) -> 0.30
B45: Practice Field | C45: Grass | D45: 1.20
B46: Soccer Field | C46: Grass | D46: 1.30 | F46: M.C. Riley Elementary School | G46: Playfield | H46: Artificial - Sand | I46: 0.20
B47: Other | C47: Grass | D47: 12.60 | H47: Total Acreage | I47: =SUM(I46) -> 0.20
C48: Total Acreage | D48: =SUM(D42:D47) -> 20.70
F49: May River High School | G49: Football Stadium | H49: Artificial - Silicone | I49: 2.30
A50: Broad River Elementary School | B50: Playfield | C50: Artificial - Sand | D50: 0.15 | G50: Baseball Field | H50: Grass | I50: 2.90
C51: Total Acreage | D51: =SUM(D50) -> 0.15 | G51: Softball Field | H51: Grass | I51: 1.10
G52: Practice Field #1 | H52: Grass | I52: 1.40
A53: Robert Smalls Leadership Academy | B53: Football Field | C53: Grass | D53: 2.32 | G53: Practice Field #2 | H53: Grass | I53: 1.30
B54: Baseball Field | C54: Grass | D54: 2.26 | G54: Other | H54: Grass | I54: 9.60
B55: Softball Field | C55: Grass | D55: 1.08 | H55: Total Acreage | I55: =SUM(I49:I54) -> 18.60
B56: Other | C56: Grass | D56: 2.10
C57: Total Acreage | D57: =SUM(D53:D56) -> 7.76 | F57: Bluffton Middle School | G57: Football Field | H57: Grass | I57: 2.60
G58: Softball Field | H58: Grass | I58: 1.20
A59: Joseph Shanklin Elementary | B59: Playfield | C59: Artificial - Sand | D59: 0.15 | G59: Other | H59: Grass | I59: 3.40
C60: Total Acreage | D60: =SUM(D59) -> 0.15 | H60: Total Acreage | I60: =SUM(I57:I59) -> 7.20
A62: Total Acreage - Battery Creek | D62: =SUM(D48, D51, D57, D60) -> 28.76 | F62: River Ridge Academy | G62: Football Field | H62: Grass | I62: 1.90
G63: Baseball Field | H63: Grass | I63: 2.20
A64: WHALE BRANCH | B64: Athletic Field | C64: Field Type | D64: Acreage | G64: Softball Field | H64: Grass | I64: 1.00
A65: Whale Branch Early College High School | B65: Football Stadium | C65: Artificial - Rubber | D65: 2.30 | G65: Other | H65: Grass | I65: 2.90
B66: Baseball Field | C66: Grass | D66: 2.90 | H66: Total Acreage | I66: =SUM(I62:I65) -> 8.00
B67: Softball Field | C67: Grass | D67: 0.90
B68: Practice Field | C68: Grass | D68: 1.50 | F68: Total Acreage - Bluffton | I68: =SUM(I55, I60, I63, I66) -> 36.00
B69: Other | C69: Grass | D69: 13.00
C70: Total Acreage | D70: =SUM(D65:D69) -> 20.60
A72: Whale Branch Middle School | B72: Football Field | C72: Grass | D72: 1.40
B73: Baseball/Softball Field | C73: Grass | D73: 1.50
B74: Other | C74: Grass | D74: 1.90
C75: Total Acreage | D75: =SUM(D72:D74) -> 4.80
F76: ANNUAL COST BIDS:
A77: Whale Branch Elementary School | B77: Playfield | C77: Artificial - Sand | D77: 0.20 | F77: BEAUFORT GROUP | I77: $
C78: Total Acreage | D78: =SUM(D77) -> 0.20 | F78: BATTERY CREEK GROUP | I78: $
F79: WHALE BRANCH GROUP | I79: $
A80: James J. Davis Early Childhood Center | B80: Playfield | C80: Artificial - Sand | D80: 0.10 | F80: HILTON HEAD ISLAND GROUP | I80: $
C81: Total Acreage | D81: =SUM(D80) -> 0.10 | F81: BLUFFTON GROUP | I81: $
F82: Bidders may bid on one or more groups. Awards may be made to multiple bidders.
A83: Total Acreage - Whale Branch | D83: =SUM(D70, D75, D78, D81) -> 25.70

Sheet Original Data
A3: # | B3: School | C3: Cluster | D3: Athletic Field | E3: Field Type | F3: Acreage | G3: Total | H3: Comments
A4: 1 | B4: Beaufort High School | C4: Beaufort | D4: Football Stadium | E4: artificial - rubber | F4: 2.30
D5: Baseball Field | E5: grass | F5: 2.52
D6: Softball Field | E6: grass | F6: 0.90
D7: Practice Field | E7: grass | F7: 2.70
D8: Other | E8: grass | F8: =+G9-SUM(F4:F7) -> 9.88
G9: 18.30
A10: 2 | B10: Beaufort Middle School | C10: Beaufort | D10: Football Field | E10: grass | F10: 2.30
D11: Baseball Field | E11: grass | F11: 2.00
D12: Softball Field | E12: grass | F12: 0.80
D13: Other | E13: grass | F13: 11.80
G14: =SUM(F10:F13) -> 16.90
A15: 3 | B15: Mossy Oaks | C15: Beaufort | D15: Playfield | E15: artificial - sand | F15: 0.20 | G15: 0.20
A16: 4 | B16: Lady's Island Middle School | C16: Beaufort | D16: Football Field | E16: grass | F16: 2.35
D17: Baseball/Softball | E17: grass | F17: 0.80
D18: Other | E18: grass | F18: 3.95
G19: =SUM(F16:F18) -> 7.10
A20: 5 | B20: Lady's Island Elementary School | C20: Beaufort | D20: Playfield | E20: artificial - sand | F20: 0.10 | G20: 0.10
A21: 6 | B21: St. Helena | C21: Beaufort | D21: Playfield | E21: artificial - sand | F21: 0.10 | G21: 0.10
A22: 7 | B22: Beaufort Elementary School | C22: Beaufort | D22: Playfield | E22: artificial - sand | F22: 0.10 | G22: 0.10
A23: 8 | B23: Coosa Elementary School | C23: Beaufort | D23: Playfield | E23: artificial - sand | F23: 0.10 | G23: 0.10
A24: 9 | B24: Port Royal Elementary School | C24: Beaufort | D24: Playfield | E24: artificial - sand | F24: 0.10 | G24: 0.10
A25: 10 | B25: Battery Creek High School | C25: Battery Creek | D25: Football Stadium | E25: artificial - silicone | F25: 2.00
D26: Baseball Field | E26: grass | F26: 2.50
D27: Softball Field | E27: grass | F27: 1.10
D28: Practice Field | E28: grass | F28: 1.20
D29: Soccer Field | E29: grass | F29: 1.30
D30: Other | E30: grass | F30: 12.60
G31: =SUM(F25:F30) -> 20.70
A32: 11 | B32: Broad River Elementary | C32: Battery Creek | D32: Playfield | E32: artificial - sand | F32: 0.15 | G32: 0.15
A33: 12 | B33: Joseph Shanklin Elementary | C33: Battery Creek | D33: Playfield | E33: artificial - sand | F33: 0.15 | G33: 0.15
A34: 13 | B34: Robert Smalls Leadership Academy | C34: Battery Creek | D34: Football Field | E34: grass | F34: 2.32
D35: Baseball Field | E35: grass | F35: 2.26
D36: Softball Field | E36: grass | F36: 1.08
D37: Other | E37: grass | F37: 2.10
G38: =SUM(F34:F37) -> 7.76
A39: 14 | B39: Whale Branch Early College High School | C39: Whale Branch | D39: Football Stadium | E39: artificial - rubber | F39: 2.30
D40: Baseball Field | E40: grass | F40: 2.90
D41: Softball Field | E41: grass | F41: 0.90
D42: Practice Field | E42: grass | F42: 1.50
D43: Other | E43: grass | F43: 13.00
G44: =SUM(F39:F43) -> 20.60
A45: 15 | B45: Whale Branch Middle | C45: Whale Branch | D45: Football Field | E45: grass | F45: 1.40
D46: Baseball/Softball Field | E46: grass | F46: 1.50
D47: Other | E47: grass | F47: 1.90
G48: =SUM(F45:F47) -> 4.80
A49: 16 | B49: Whale Branch Elementary | C49: Whale Branch | D49: Playfield | E49: artificial turf - sand | F49: 0.20 | G49: 0.20
A50: 17 | B50: James J. Davis Early Childhood Center | C50: Whale Branch | D50: Playfield | E50: artificial turf - sand | F50: 0.10 | G50: 0.10
A53: 18 | B53: Hilton Head Island High School | C53: Hilton Head Island | D53: Football Stadium | E53: artificial - silicone | F53: 2.34
D54: Baseball Field | E54: grass | F54: 2.67
D55: Softball Field | E55: grass | F55: 0.98
D56: Lacrosse Field | E56: grass | F56: 1.80
D57: Soccer Field | E57: grass | F57: 1.40
D58: Other | E58: grass | F58: =+G59-SUM(F53:F57) -> 5.91
G59: =8.9+6.2 -> 15.10
A60: 19 | B60: Hilton Head Island Middle School | C60: Hilton Head Island | D60: Practice Field | E60: grass | F60: 1.50
D61: Softball Field | E61: grass | F61: 1.00
D62: Other | E62: grass | F62: 1.01
G63: =SUM(F60:F62) -> 3.51
A64: 20 | B64: Hilton Head Island Elementary School | C64: Hilton Head Island | D64: Playfield | E64: artificial - sand | F64: 0.20 | G64: 0.20
A66: 21 | B66: Bluffton High School | C66: Bluffton | D66: Football Stadium | E66: artificial - silicone | F66: 2.30 | H66: Drawing = BLHS HEMMS BLES
D67: Baseball Field | E67: grass | F67: 3.15
D68: Softball Field | E68: grass | F68: 1.20
D69: Practice Field | E69: grass | F69: 2.31
D70: Other | E70: grass | F70: =+G71-SUM(F66:F69) -> 5.74
G71: 14.70
A72: 22 | B72: H.E. McCracken | C72: Bluffton | D72: Football field | E72: grass | F72: 1.50 | H72: Drawing = BLHS HEMMS BLES
D73: softball infield | E73: grass | F73: 0.80
D74: other | E74: grass | F74: 0.60
G75: =SUM(F72:F74) -> 2.90
A76: 23 | B76: Bluffton Elementary School | C76: Bluffton | D76: Playfield | E76: artificial - sand | F76: 0.20 | G76: 0.2 | H76: Drawing = BLHS HEMMS BLES
A77: 24 | B77: Pritchardville Elementary School | C77: Bluffton | D77: Playfield | E77: artificial - sand | F77: 0.20 | G77: 0.2
A78: 25 | B78: Okatie Elementary School | C78: Bluffton | D78: Playfield | E78: artificial - sand | F78: 0.10 | G78: 0.1
A79: 26 | B79: Red Cedar | C79: Bluffton | D79: Playfield | E79: artificial - sand | F79: 0.30 | G79: 0.3
A80: 27 | B80: M.C. Riley Elementary School | C80: Bluffton | D80: Playfield | E80: artificial - sand | F80: 0.20 | G80: 0.2
A81: 28 | B81: May River High School | C81: Bluffton | D81: Football Stadium | E81: artificial - silicone | F81: 2.30
D82: Baseball Field | E82: grass | F82: 2.90
D83: Softball Field | E83: grass | F83: 1.10
D84: Practice Field #1 | E84: grass | F84: 1.40
D85: Practice Field #2 | E85: grass | F85: 1.30
D86: Other | E86: grass | F86: =+G87-SUM(F81:F85) -> 9.60
G87: 18.60
A88: 29 | B88: Bluffton Middle School | C88: Bluffton | D88: Football Field | E88: grass | F88: 2.60
D89: Softball Field | E89: grass | F89: 1.20
D90: Other | E90: grass | F90: =+G91-SUM(F88:F89) -> 3.40
G91: 7.20
A92: 30 | B92: River Ridge Academy | C92: Bluffton | D92: Football Field | E92: grass | F92: 1.90
D93: Baseball Field | E93: grass | F93: 2.20
D94: Softball Field | E94: grass | F94: 1.00
D95: Other | E95: grass | F95: =+G96-SUM(F92:F94) -> 2.90
G96: 8.00
